bitfinex-derivatives/quotes_BTCF0:USTF0_20250929
["timestamp","ask_amount","ask_price","bid_price","bid_amount"]
[1759159636752,3.33243422,113860.0,113850.0,0.00211429]
[1759159636949,3.33252592,113860.0,113850.0,0.00211429]
[1759159637143,3.68231301,113860.0,113850.0,0.00211429]
[1759159637342,2.50875422,113860.0,113850.0,0.00211429]
[1759159637548,2.88527422,113860.0,113850.0,0.00211429]
[1759159637749,2.48519422,113860.0,113850.0,0.11124259]
[1759159638049,1.78553033,113860.0,113850.0,0.02346429]
[1759159638249,2.48528791,113860.0,113850.0,0.02346429]
[1759159639553,1.66044791,113860.0,113850.0,0.02346429]
[1759159639758,2.48564791,113860.0,113850.0,0.11124259]
[1759159640253,1.69803963,113860.0,113850.0,0.11124259]
[1759159640451,1.2899979,113860.0,113850.0,0.11124259]
[1759159640646,1.63987669,113860.0,113850.0,0.11124259]
[1759159640852,2.46623669,113860.0,113850.0,0.11124259]
[1759159641545,1.63987669,113860.0,113850.0,0.11124259]
[1759159641751,1.2022273,113860.0,113850.0,0.11124259]
[1759159641944,1.2022273,113860.0,113850.0,0.86112138]
[1759159642144,2.0282273,113860.0,113850.0,0.86112138]
[1759159642350,2.1159979,113860.0,113850.0,0.86112138]
[1759159642652,2.0282273,113860.0,113850.0,0.86112138]
[1759159642958,2.1159979,113860.0,113850.0,0.86112138]
[1759159643356,2.1159979,113860.0,113850.0,0.51124259]
[1759159643562,1.2899979,113860.0,113850.0,0.86112138]
[1759159643958,1.76591911,113860.0,113850.0,0.86112138]
[1759159644260,2.1157979,113860.0,113850.0,0.86112138]
[1759159645357,1.7546379,113860.0,113850.0,0.86112138]
[1759159645554,0.8414273,113860.0,113850.0,0.86112138]
[1759159645758,1.6667873,113860.0,113850.0,0.86112138]
[1759159645960,1.7545578,113860.0,113850.0,0.86112138]
[1759159647149,0.13074851,113860.0,113850.0,0.86112138]
[1759159647349,0.13074851,113860.0,113850.0,0.90839597]
[1759159647655,0.13074851,113860.0,113850.0,1.61907476]
[1759159647854,0.13074851,113860.0,113850.0,1.26919597]
[1759159649257,0.13074851,113860.0,113850.0,2.09387597]
[1759159649454,0.13074851,113860.0,113850.0,1.26919597]
[1759159649655,0.13074851,113860.0,113850.0,2.09379597]
[1759159650457,0.13074851,113860.0,113850.0,2.44367476]
[1759159650763,0.4806273,113860.0,113850.0,0.91931718]
[1759159650953,0.5683978,113860.0,113850.0,0.86919597]
[1759159651152,0.13074851,113860.0,113850.0,0.86919597]
[1759159651348,0.4806273,113860.0,113850.0,0.86919597]
[1759159651559,0.13074851,113860.0,113850.0,0.86919597]
[1759159652858,0.4806273,113860.0,113850.0,1.34835718]
[1759159653050,0.4806273,113860.0,113850.0,1.69823597]
[1759159653857,0.4806273,113860.0,113850.0,2.09823597]
[1759159654459,0.13074851,113860.0,113850.0,2.09823597]
[1759159654660,0.4806273,113860.0,113850.0,2.09823597]
[1759159654859,0.13074851,113860.0,113850.0,2.09823597]
[1759159655267,0.4806273,113860.0,113850.0,1.74835718]
[1759159655466,0.4806273,113860.0,113850.0,2.09823597]
[1759159656066,0.4806273,113860.0,113850.0,1.74835718]
[1759159656266,0.4806273,113860.0,113850.0,2.09823597]
[1759159656471,0.13074851,113860.0,113850.0,2.09823597]
[1759159656661,0.4806273,113860.0,113850.0,2.09823597]
[1759159657062,0.13074851,113860.0,113850.0,2.09823597]
[1759159657462,0.4806273,113860.0,113850.0,0.91931718]
[1759159657657,0.4806273,113860.0,113850.0,0.50839597]
[1759159658364,0.13074851,113860.0,113850.0,0.50839597]
[1759159658555,0.4806273,113860.0,113850.0,0.50839597]
[1759159659363,0.4806273,113860.0,113850.0,0.15851718]
[1759159659570,0.4806273,113860.0,113850.0,0.50839597]
[1759159660364,0.13074851,113860.0,113850.0,0.50839597]
[1759159660672,0.9291978,113860.0,113850.0,0.15851718]
[1759159660875,1.2995881,113860.0,113850.0,0.11124259]
[1759159661072,1.6995881,113860.0,113850.0,0.11124259]
[1759159661767,1.2995881,113860.0,113850.0,0.11124259]
[1759159663973,2.1266281,113860.0,113850.0,0.11124259]
[1759159664170,1.77674931,113860.0,113850.0,0.46112138]
[1759159664370,2.1266281,113860.0,113850.0,0.11124259]
[1759159665279,1.42687052,113860.0,113850.0,0.11124259]
[1759159665468,2.1266281,113860.0,113850.0,0.11124259]
[1759159665978,1.2995881,113860.0,113850.0,0.11124259]
[1759159666275,2.1264681,113860.0,113850.0,0.11124259]
[1759159667067,1.2995881,113860.0,113850.0,0.11124259]
[1759159667267,2.1261081,113860.0,113850.0,0.11124259]
[1759159667874,2.1261081,113860.0,113850.0,0.15851718]
[1759159669577,1.42635052,113860.0,113850.0,0.15851718]
[1759159669778,2.1261081,113860.0,113850.0,0.15851718]
[1759159669981,2.1261081,113860.0,113850.0,0.14851718]
[1759159670281,2.1261081,113860.0,113850.0,0.16190718]
[1759159670979,2.1251881,113860.0,113850.0,0.16190718]
[1759159671172,2.1248281,113860.0,113850.0,0.16190718]
[1759159672676,1.42507052,113860.0,113850.0,0.16190718]
[1759159672872,2.1248281,113860.0,113850.0,0.16190718]
[1759159673074,0.59983052,113860.0,113850.0,0.16190718]
[1759159673283,2.1248281,113860.0,113850.0,0.16190718]
[1759159673779,2.1248281,113860.0,113850.0,0.14844289]
[1759159673977,2.87470689,113860.0,113850.0,0.06066459]
[1759159674285,2.51390689,113860.0,113850.0,0.01339]
[1759159674482,3.23550689,113860.0,113850.0,0.01339]
[1759159674678,2.8856281,113860.0,113850.0,0.01339]
[1759159674875,2.8856281,113860.0,113850.0,0.03516]
[1759159678379,2.8951081,113860.0,113850.0,0.03516]
[1759159678682,2.0603881,113860.0,113850.0,0.03516]
[1759159678886,2.8948681,113860.0,113850.0,0.03516]
[1759159679794,2.8949081,113860.0,113850.0,0.03516]
[1759159680381,0.87286002,113860.0,113850.0,0.47281709]
[1759159680588,2.38638609,113860.0,113850.0,0.17021289]
[1759159680788,2.47415669,113860.0,113850.0,0.08243459]
[1759159680986,2.4946574,113860.0,113850.0,0.08243459]
[1759159681185,2.4946574,113860.0,113850.0,0.03516]
[1759159681576,1.5726068,113860.0,113850.0,0.17021289]
[1759159681783,1.55210609,113860.0,113850.0,0.17021289]
[1759159682087,2.47447669,113860.0,113850.0,0.17021289]
[1759159683891,2.49498048,113860.0,113850.0,0.17021289]
[1759159684286,2.14520377,113860.0,113850.0,0.17021289]
[1759159685391,1.7952229,113860.0,113850.0,0.17021289]
[1759159685588,2.14520377,113860.0,113850.0,0.17021289]
[1759159686290,1.7952229,113860.0,113850.0,0.17021289]
[1759159686490,0.9606229,113860.0,113850.0,0.17021289]
[1759159686794,2.14396377,113860.0,113850.0,0.17021289]
[1759159687791,1.7939829,113860.0,113850.0,0.17021289]
[1759159687991,2.14396377,113860.0,113850.0,0.17021289]
[1759159688692,2.14396377,113860.0,113850.0,0.08243459]
[1759159688891,2.14396377,113860.0,113850.0,0.17021289]
[1759159689191,2.14396377,113860.0,113850.0,0.1229383]
[1759159689392,2.14272377,113860.0,113850.0,0.03516]
[1759159689887,1.7927429,113860.0,113850.0,0.03516]
[1759159690094,2.14272377,113860.0,113850.0,0.03516]
[1759159692794,2.14272377,113860.0,113850.0,0.1229383]
[1759159694389,0.5120523,113860.0,113850.0,0.1229383]
[1759159694591,0.49154851,113860.0,113850.0,0.87291917]
[1759159695895,0.13074851,113860.0,113850.0,0.87291917]
[1759159696582,0.48072938,113860.0,113850.0,0.1229383]
[1759159696783,0.84152938,113860.0,113850.0,0.1229383]
[1759159697393,0.86244205,113860.0,113850.0,0.1229383]
[1759159697598,0.51246118,113860.0,113850.0,0.1229383]
[1759159697889,0.60023168,113860.0,113850.0,0.1229383]
[1759159698088,0.95021255,113860.0,113850.0,0.1229383]
[1759159699598,0.60023168,113860.0,113850.0,0.1229383]
[1759159699999,0.95021255,113860.0,113850.0,0.1229383]
[1759159702891,1.77961255,113860.0,113850.0,0.1229383]
[1759159703086,1.42963168,113860.0,113850.0,0.1229383]
[1759159703294,1.77961255,113860.0,113850.0,0.1229383]
[1759159703499,0.95021255,113860.0,113850.0,0.1229383]
[1759159703697,1.77949255,113860.0,113850.0,0.1229383]
[1759159704692,1.77941255,113860.0,113850.0,0.1229383]
[1759159704897,1.42943168,113860.0,113850.0,0.1229383]
[1759159705099,1.77909255,113860.0,113850.0,0.1229383]
[1759159705294,1.77909255,113860.0,113850.0,0.03516]
[1759159705600,1.42911168,113860.0,113850.0,0.03516]
[1759159705801,1.77909255,113860.0,113850.0,0.03516]
[1759159706296,1.77909255,113860.0,113850.0,0.1229383]
[1759159708102,1.42911168,113860.0,113850.0,0.1229383]
[1759159708302,1.77909255,113860.0,113850.0,0.1229383]
[1759159709696,1.77801255,113860.0,113850.0,0.1229383]
[1759159710197,0.95021255,113860.0,113850.0,0.1229383]
[1759159710398,1.77749255,113860.0,113850.0,0.1229383]
[1759159710703,0.95021255,113860.0,113850.0,0.1229383]
[1759159710904,1.77737255,113860.0,113850.0,0.1229383]
[1759159711108,1.42739168,113860.0,113850.0,0.1229383]
[1759159711305,1.77737255,113860.0,113850.0,0.1229383]
[1759159713710,1.42703168,113860.0,113850.0,0.1229383]
[1759159713911,0.51246118,113860.0,113850.0,0.47291917]
[1759159714104,1.42667168,113860.0,113850.0,0.47291917]
[1759159714308,0.51246118,113860.0,113850.0,0.47291917]
[1759159714608,0.49154851,113860.0,113850.0,0.87291917]
[1759159714810,0.13074851,113860.0,113850.0,0.87291917]
[1759159717708,0.13074851,113860.0,113850.0,0.5229383]
[1759159717906,0.13074851,113860.0,113850.0,0.87291917]
[1759159719409,0.21851971,113860.0,113850.0,0.1229383]
[1759159719613,0.13074851,113860.0,113850.0,0.87291917]
[1759159719813,0.21851991,113860.0,113850.0,0.87291917]
[1759159720014,0.57931991,113860.0,113850.0,0.87291917]
[1759159720409,0.57931991,113860.0,113850.0,0.47291917]
[1759159721115,0.49154851,113860.0,113850.0,0.47291917]
[1759159724511,0.57931991,113860.0,113850.0,0.47291917]
[1759159726315,0.60024347,113860.0,113850.0,0.03516]
[1759159726517,0.60024482,113860.0,113850.0,0.03516]
[1759159726818,0.60024482,113860.0,113850.0,0.47291997]
[1759159727410,0.51247342,113860.0,113850.0,0.47291997]
[1759159727818,0.51247342,113860.0,113850.0,0.87291997]
[1759159733025,0.15167342,113860.0,113850.0,0.87291997]
[1759159734621,0.13074851,113860.0,113850.0,0.87291997]
[1759159735323,0.13074851,113860.0,113850.0,0.5229391]
[1759159735529,0.13074851,113860.0,113850.0,0.87291997]
[1759159739629,0.13074851,113860.0,113850.0,0.93595276]
[1759159740027,0.13074851,113860.0,113850.0,0.53595276]
[1759159740222,0.13074851,113860.0,113850.0,0.82290084]
[1759159740425,0.13074851,113860.0,113850.0,0.88593363]
[1759159740934,0.13074851,113860.0,113850.0,0.53595276]
[1759159743040,0.13074851,113860.0,113850.0,0.54456461]
[1759159743440,0.13074851,113860.0,113850.0,0.89454548]
[1759159744039,0.13074851,113860.0,113850.0,0.93595276]
[1759159744241,0.13074851,113860.0,113850.0,1.28562581]
[1759159745535,0.13074851,113860.0,113850.0,1.64642581]
[1759159746745,0.13074851,113860.0,113850.0,1.59230899]
[1759159746936,0.13074851,113860.0,113850.0,1.58339302]
[1759159747138,0.13074851,113860.0,113850.0,2.40243302]
[1759159747640,0.3608,113880.0,113870.0,0.1238441]
[1759159747837,0.38171221,113880.0,113870.0,0.47367106]
[1759159748234,0.3608,113880.0,113870.0,0.47367106]
[1759159748531,0.38171077,113880.0,113870.0,1.29283106]
[1759159748938,0.38771077,113880.0,113870.0,1.29483106]
[1759159749145,0.4338,113880.0,113870.0,0.47667106]
[1759159749443,0.4338,113880.0,113870.0,1.29563106]
[1759159750934,0.4338,113880.0,113870.0,0.9458041]
[1759159751138,0.4338,113880.0,113870.0,1.29563106]
[1759159752437,0.073,113880.0,113870.0,1.64545802]
[1759159752642,0.073,113880.0,113870.0,0.82649802]
[1759159752842,0.073,113880.0,113870.0,0.47667106]
[1759159753038,0.073,113880.0,113870.0,1.29487106]
[1759159753845,0.073,113880.0,113870.0,1.29499106]
[1759159754240,0.8071092,113890.0,113880.0,0.0877564]
[1759159754440,0.82789269,113890.0,113880.0,0.47320336]
[1759159755040,0.74014149,113890.0,113880.0,0.1233764]
[1759159755240,0.74014149,113890.0,113880.0,0.47320336]
[1759159755539,0.39631453,113890.0,113880.0,0.82403032]
[1759159755743,0.40831453,113890.0,113880.0,0.82703032]
[1759159756844,0.84589019,113890.0,113880.0,0.9462164]
[1759159757044,0.75814149,113890.0,113880.0,0.9462164]
[1759159757239,0.75814149,113890.0,113880.0,1.29604336]
[1759159758045,0.40831453,113890.0,113880.0,1.29604336]
[1759159758344,0.75814149,113890.0,113880.0,1.29604336]
[1759159759644,0.75814149,113890.0,113880.0,0.47720336]
[1759159759845,0.75814149,113890.0,113880.0,1.29596336]
[1759159760545,0.737358,113890.0,113880.0,0.47720336]
[1759159760745,0.737358,113890.0,113880.0,1.29596336]
[1759159762440,0.737358,113890.0,113880.0,0.47720336]
[1759159762647,0.737358,113890.0,113880.0,1.29564386]
[1759159763548,0.737358,113890.0,113880.0,0.1273769]
[1759159763751,0.737358,113890.0,113880.0,1.29536386]
[1759159765249,0.737358,113890.0,113880.0,0.9455369]
[1759159765451,0.737358,113890.0,113880.0,1.29536386]
[1759159766755,0.38753104,113890.0,113880.0,0.47720386]
[1759159766951,0.737358,113890.0,113880.0,0.47720386]
[1759159768753,0.38753104,113890.0,113880.0,0.47720386]
[1759159768953,0.737358,113890.0,113880.0,0.47720386]
[1759159770446,0.737358,113890.0,113880.0,0.1273769]
[1759159770648,0.38753104,113890.0,113880.0,0.82703082]
[1759159772352,0.38753104,113890.0,113880.0,1.64339082]
[1759159774056,0.3788,113890.0,113880.0,1.64339082]
[1759159776053,0.3788,113890.0,113880.0,0.82703082]
[1759159776256,0.3788,113890.0,113880.0,1.64339082]
[1759159776761,0.3788,113890.0,113880.0,0.9437369]
[1759159777062,0.3788,113890.0,113880.0,1.64339082]
[1759159778057,0.3788,113890.0,113880.0,0.9437369]
[1759159778362,0.3788,113890.0,113880.0,1.64339082]
[1759159779761,0.3788,113890.0,113880.0,0.82703082]
[1759159780060,0.3788,113890.0,113880.0,1.64335082]
[1759159780452,0.3788,113890.0,113880.0,0.82703082]
[1759159780653,0.3788,113890.0,113880.0,1.64335082]
[1759159781552,0.3788,113890.0,113880.0,0.82703082]
[1759159781752,0.3788,113890.0,113880.0,1.64335082]
[1759159782456,0.3788,113890.0,113880.0,0.1273769]
[1759159782746,0.3788,113890.0,113880.0,1.64335082]
[1759159783149,0.3788,113890.0,113880.0,0.9436969]
[1759159783354,0.3788,113890.0,113880.0,1.64335082]
[1759159783660,0.72862696,113890.0,113880.0,0.82703082]
[1759159783862,0.81637606,113890.0,113880.0,0.9436968]
[1759159784056,1.56620302,113890.0,113880.0,0.03962]
[1759159784257,1.56620302,113890.0,113880.0,0.1273768]
[1759159784558,1.21637606,113890.0,113880.0,0.1273768]
[1759159784759,1.21637606,113890.0,113880.0,0.03962]
[1759159785160,2.40328485,113890.0,113880.0,0.01788]
[1759159785357,2.40332485,113890.0,113880.0,0.01788]
[1759159788863,2.85172485,113890.0,113880.0,0.01788]
[1759159791960,3.20155181,113890.0,113880.0,0.01788]
[1759159792167,2.38523181,113890.0,113880.0,0.01788]
[1759159792355,3.20159181,113890.0,113880.0,0.01788]
[1759159792966,2.85176485,113890.0,113880.0,0.01788]
[1759159795568,2.03540485,113890.0,113880.0,0.01788]
[1759159795760,2.85220485,113890.0,113880.0,0.01788]
[1759159796168,2.03540485,113890.0,113880.0,0.01788]
[1759159796565,2.85212485,113890.0,113880.0,0.01788]
[1759159797065,2.85204485,113890.0,113880.0,0.01788]
[1759159797375,2.85192485,113890.0,113880.0,0.01788]
[1759159797769,2.40352485,113890.0,113880.0,0.01788]
[1759159797966,2.40348485,113890.0,113880.0,0.01788]
[1759159798264,2.00340485,113890.0,113880.0,0.04112]
[1759159798769,2.00340485,113890.0,113880.0,0.01788]
[1759159800068,1.18700485,113890.0,113880.0,0.01788]
[1759159800265,0.48735093,113890.0,113880.0,0.04112]
[1759159800568,0.72866696,113890.0,113880.0,0.47870376]
[1759159800772,1.63285606,113890.0,113880.0,0.47870376]
[1759159801071,0.72866696,113890.0,113880.0,0.87870376]
[1759159801570,1.21645921,113890.0,113880.0,0.87870376]
[1759159802070,1.56628617,113890.0,113880.0,0.87870376]
[1759159802370,0.83759527,113890.0,113880.0,0.87870376]
[1759159802572,0.83759527,113890.0,113880.0,0.5288768]
[1759159802765,0.83759527,113890.0,113880.0,0.87870376]
[1759159803271,0.83759527,113890.0,113880.0,0.5288768]
[1759159803768,0.83759527,113890.0,113880.0,0.87870376]
[1759159803969,0.48776831,113890.0,113880.0,0.87870376]
[1759159804170,0.83759527,113890.0,113880.0,0.87870376]
[1759159804877,0.74984617,113890.0,113880.0,0.87870376]
[1759159805063,1.56764617,113890.0,113880.0,0.87870376]
[1759159805568,1.65539527,113890.0,113880.0,0.87870376]
[1759159806372,1.30556831,113890.0,113880.0,0.5288768]
[1759159806567,0.40001921,113890.0,113880.0,0.5288768]
[1759159806767,1.21781921,113890.0,113880.0,0.87864008]
[1759159806973,1.19664,113890.0,113880.0,0.87864008]
[1759159807173,0.37884,113890.0,113880.0,0.87864008]
[1759159808369,0.37884,113890.0,113880.0,1.22840336]
[1759159808873,0.37884,113890.0,113880.0,0.87864008]
[1759159809072,0.37884,113890.0,113880.0,1.69656008]
[1759159810071,0.01804,113890.0,113880.0,2.04632336]
[1759159810370,0.44031005,113900.0,113890.0,0.1109896]
[1759159810371,0.43135983,113900.0,113890.0,0.1109896]
[1759159810572,0.44030994,113900.0,113890.0,0.47455288]
[1759159810964,0.44030994,113900.0,113890.0,1.29319288]
[1759159811979,0.44030994,113900.0,113890.0,0.47455288]
[1759159812172,0.44030994,113900.0,113890.0,1.29367288]
[1759159812382,0.44030994,113900.0,113890.0,0.47455288]
[1759159812572,0.44030994,113900.0,113890.0,1.29359288]
[1759159813678,0.44030994,113900.0,113890.0,0.47455288]
[1759159813976,0.44030994,113900.0,113890.0,1.29355288]
[1759159814178,0.44030994,113900.0,113890.0,1.29327288]
[1759159814378,0.43135983,113900.0,113890.0,1.29327288]
[1759159814579,0.43135983,113900.0,113890.0,0.9435096]
[1759159814778,0.43135983,113900.0,113890.0,1.29327288]
[1759159815273,0.44001042,113900.0,113890.0,1.69327288]
[1759159815467,0.07921042,113900.0,113890.0,1.69327288]
[1759159815667,0.00865059,113900.0,113890.0,1.69327288]
[1759159815871,0.3608,113910.0,113900.0,0.1235219]
[1759159816067,0.38207888,113910.0,113900.0,0.47328518]
[1759159816478,0.38207888,113910.0,113900.0,0.87328518]
[1759159816978,0.45273783,113910.0,113900.0,0.87328518]
[1759159817279,0.45673276,113910.0,113900.0,0.87328518]
[1759159817679,0.07465895,113910.0,113900.0,0.87328518]
[1759159817878,0.07865895,113910.0,113900.0,0.87428518]
[1759159819481,0.07865895,113910.0,113900.0,1.69256518]
[1759159819980,0.07865895,113910.0,113900.0,2.05336518]
[1759159820182,0.07865895,113910.0,113900.0,1.23508518]
[1759159820382,0.07865895,113910.0,113900.0,2.05332518]
[1759159820981,0.008,113910.0,113900.0,2.11635797]
[1759159821182,0.36084,113930.0,113920.0,0.1227664]
[1759159821482,0.4485587,113930.0,113920.0,0.1227664]
[1759159822470,0.4685587,113930.0,113920.0,0.1247664]
[1759159823075,0.79832198,113930.0,113920.0,0.1227664]
[1759159823277,0.80432198,113930.0,113920.0,0.1227664]
[1759159823481,0.4545587,113930.0,113920.0,0.1227664]
[1759159824183,0.80432198,113930.0,113920.0,0.1227664]
[1759159824382,0.8739862,113930.0,113920.0,0.1227664]
[1759159824577,0.52422292,113930.0,113920.0,0.1227664]
[1759159825177,0.44517924,113930.0,113920.0,0.1227664]
[1759159825376,0.44517924,113930.0,113920.0,0.47252968]
[1759159827286,0.44517924,113930.0,113920.0,0.1227664]
[1759159828282,0.53289794,113930.0,113920.0,0.1227664]
[1759159829489,0.88266122,113930.0,113920.0,0.03504]
[1759159829679,1.3038933,113930.0,113920.0,0.03504]
[1759159831386,1.3038933,113930.0,113920.0,0.01356]
[1759159832689,2.1201733,113930.0,113920.0,0.01356]
[1759159832886,1.3038933,113930.0,113920.0,0.03504]
[1759159833081,2.1201733,113930.0,113920.0,0.03504]
[1759159833277,1.3038933,113930.0,113920.0,0.03504]
[1759159833482,0.9038933,113930.0,113920.0,0.1227664]
[1759159833777,1.7201733,113930.0,113920.0,0.03504]
[1759159833978,0.9038933,113930.0,113920.0,0.03504]
[1759159834290,0.53289794,113930.0,113920.0,0.47252968]
[1759159834586,1.34917794,113930.0,113920.0,0.47252968]
[1759159835087,0.44517924,113930.0,113920.0,0.1227664]
[1759159835388,0.53289774,113930.0,113920.0,0.47252968]
[1759159836082,0.53289774,113930.0,113920.0,0.1227664]
[1759159837389,0.52689774,113930.0,113920.0,0.1257664]
[1759159837594,0.52689774,113930.0,113920.0,0.1317664]
[1759159838180,0.52689774,113930.0,113920.0,0.48152968]
[1759159839696,0.87666102,113930.0,113920.0,0.1317664]
[1759159840093,0.87666102,113930.0,113920.0,0.04404]
[1759159840395,0.89791269,113930.0,113920.0,0.04404]
[1759159840787,0.89791269,113930.0,113920.0,0.1317662]
[1759159843294,0.89791269,113930.0,113920.0,0.04404]
[1759159843690,0.89791269,113930.0,113920.0,0.1317662]
[1759159845190,0.89791269,113930.0,113920.0,0.04404]
[1759159845393,1.29791269,113930.0,113920.0,0.04404]
[1759159846084,1.29791269,113930.0,113920.0,0.1317662]
[1759159846287,1.29791269,113930.0,113920.0,0.04404]
[1759159848096,1.29791269,113930.0,113920.0,0.02256]
[1759159848398,2.11411269,113930.0,113920.0,0.02256]
[1759159850504,0.0877262,113920.0,113910.0,0.01356]
[1759159850695,0.81954115,113920.0,113910.0,0.01356]
[1759159850898,0.46977787,113920.0,113910.0,0.03514]
[1759159851098,1.63570115,113920.0,113910.0,0.03514]
[1759159851701,1.63670115,113920.0,113910.0,0.04714]
[1759159852909,1.63570115,113920.0,113910.0,0.03714]
[1759159856303,1.63570115,113920.0,113910.0,0.1248739]
[1759159856704,1.63570115,113920.0,113910.0,0.03714]
[1759159857105,0.81954115,113920.0,113910.0,0.03714]
[1759159857305,1.63570115,113920.0,113910.0,0.03714]
[1759159858703,0.81954115,113920.0,113910.0,0.03714]
[1759159858914,1.63566115,113920.0,113910.0,0.03714]
[1759159860106,0.0877489,113890.0,113880.0,0.0352]
[1759159860307,0.79831218,113890.0,113880.0,0.01362]
[1759159860517,1.61443218,113890.0,113880.0,0.1229566]
[1759159860910,1.2646689,113890.0,113880.0,0.1229566]
[1759159861115,1.61443218,113890.0,113880.0,0.1229566]
[1759159861509,1.2666689,113890.0,113880.0,0.1449566]
[1759159862816,1.2656689,113890.0,113880.0,0.1339566]
[1759159863012,1.27461361,113890.0,113880.0,0.1339566]
[1759159863220,1.27461361,113890.0,113880.0,0.48371988]
[1759159863819,1.27465361,113890.0,113880.0,0.48371988]
[1759159864017,1.27461361,113890.0,113880.0,0.1339566]
[1759159864315,1.27465361,113890.0,113880.0,0.1339566]
[1759159864509,0.52737515,113890.0,113880.0,0.1339566]
[1759159864815,1.34349515,113890.0,113880.0,0.1339566]
[1759159865020,0.07882625,113890.0,113880.0,0.88371988]
[1759159865324,0.06988154,113890.0,113880.0,1.65731595]
[1759159865519,0.3608,113900.0,113880.0,1.65731595]
[1759159865520,0.0087502,113900.0,113890.0,0.1229488]
[1759159865712,0.3608,113920.0,113910.0,0.1229335]
[1759159865919,0.38206351,113920.0,113910.0,0.47269678]
[1759159866127,0.3608,113920.0,113910.0,0.5229335]
[1759159866424,0.36962906,113920.0,113910.0,0.87269678]
[1759159867120,0.36962906,113920.0,113910.0,0.87469678]
[1759159867329,0.36962906,113920.0,113910.0,0.5249335]
[1759159867512,0.45735476,113920.0,113910.0,0.5229335]
[1759159867717,0.45735476,113920.0,113910.0,0.1229335]
[1759159867718,0.4786211,113920.0,113910.0,0.1229335]
[1759159867918,0.82938438,113920.0,113910.0,0.1269335]
[1759159868422,1.17888662,113920.0,113910.0,0.0392]
[1759159868727,1.57888662,113920.0,113910.0,0.1269334]
[1759159869723,0.3918954,113920.0,113910.0,0.47656616]
[1759159869914,1.2080154,113920.0,113910.0,0.47656616]
[1759159870118,1.55764816,113920.0,113910.0,0.47656616]
[1759159870825,1.64537386,113920.0,113910.0,0.1269334]
[1759159871226,1.64537386,113920.0,113910.0,0.47656616]
[1759159871726,1.64537386,113920.0,113910.0,0.1269334]
[1759159871924,0.82925386,113920.0,113910.0,0.47656616]
[1759159872130,1.64537386,113920.0,113910.0,0.47656616]
[1759159872336,1.55760816,113920.0,113910.0,0.1269334]
[1759159872532,1.2079754,113920.0,113910.0,0.47656616]
[1759159873725,1.64533386,113920.0,113910.0,0.47656616]
[1759159874427,1.64533386,113920.0,113910.0,0.1269334]
[1759159874628,1.64533386,113920.0,113910.0,0.47656616]
[1759159875233,1.64533386,113920.0,113910.0,0.1269334]
[1759159875433,1.64533386,113920.0,113910.0,0.47656616]
[1759159876133,1.2957011,113920.0,113910.0,0.47656616]
[1759159876732,1.64533386,113920.0,113910.0,0.47656616]
[1759159878233,1.2957011,113920.0,113910.0,0.47656616]
[1759159878425,1.64533386,113920.0,113910.0,0.47656616]
[1759159878627,1.2957011,113920.0,113910.0,0.47656616]
[1759159878832,1.64529386,113920.0,113910.0,0.47656616]
[1759159879322,0.74152816,113920.0,113910.0,0.47656616]
[1759159879523,0.38306634,113920.0,113910.0,0.82619892]
[1759159879828,0.02226634,113920.0,113910.0,1.22619892]
[1759159880229,0.02226634,113920.0,113910.0,0.87656616]
[1759159880435,0.47079204,113920.0,113910.0,0.87656616]
[1759159880635,0.8204248,113920.0,113910.0,0.87656616]
[1759159880837,0.47079204,113920.0,113910.0,0.87656616]
[1759159881131,1.6364648,113920.0,113910.0,0.87656616]
[1759159881430,1.6364648,113920.0,113910.0,0.47656616]
[1759159881637,1.6364648,113920.0,113910.0,0.1269334]
[1759159881935,1.98609756,113920.0,113910.0,0.1269334]
[1759159882524,1.98609756,113920.0,113910.0,0.01762]
[1759159883136,2.38609756,113920.0,113910.0,0.01762]
[1759159885233,2.38609756,113920.0,113910.0,0.1053535]
[1759159885629,1.57005756,113920.0,113910.0,0.1275835]
[1759159885830,2.38745756,113920.0,113910.0,0.1275835]
[1759159886537,2.38745756,113920.0,113910.0,0.01762]
[1759159887640,2.38745756,113920.0,113910.0,0.03985]
[1759159888136,1.57005756,113920.0,113910.0,0.1275835]
[1759159888731,2.38805756,113920.0,113910.0,0.1275835]
[1759159888934,2.0384248,113920.0,113910.0,0.1275835]
[1759159889124,1.68879204,113920.0,113910.0,0.47721626]
[1759159889330,2.0383848,113920.0,113910.0,0.47721626]
[1759159890029,2.0383848,113920.0,113910.0,0.1275835]
[1759159890335,1.2204248,113920.0,113910.0,0.1275835]
[1759159890528,0.87079204,113920.0,113910.0,0.47721626]
[1759159890730,2.0395848,113920.0,113910.0,0.47721626]
[1759159891236,2.0395848,113920.0,113910.0,0.1275835]
[1759159891433,2.0395848,113920.0,113910.0,0.47721626]
[1759159892037,2.0395848,113920.0,113910.0,0.1275835]
[1759159892633,2.38921756,113920.0,113910.0,0.1275835]
[1759159893334,2.0395848,113920.0,113910.0,0.47721626]
[1759159893730,2.38921756,113920.0,113910.0,0.1275835]
[1759159893932,0.87079204,113920.0,113910.0,0.1275835]
[1759159894224,2.0389048,113920.0,113910.0,0.1275835]
[1759159894429,1.2204248,113920.0,113910.0,0.1275835]
[1759159894637,2.0389048,113920.0,113910.0,0.47721626]
[1759159895345,2.0389048,113920.0,113910.0,0.1275835]
[1759159895644,1.2204248,113920.0,113910.0,0.47721626]
[1759159895826,2.0388248,113920.0,113910.0,0.47721626]
[1759159896332,2.0388248,113920.0,113910.0,0.38948276]
[1759159896528,2.0388248,113920.0,113910.0,0.47721626]
[1759159897527,1.2204248,113920.0,113910.0,0.47721626]
[1759159897732,0.47079214,113920.0,113910.0,0.47721626]
[1759159897938,1.28915214,113920.0,113910.0,0.47721626]
[1759159898336,1.6387849,113920.0,113910.0,0.47721626]
[1759159898832,0.8204249,113920.0,113910.0,0.47721626]
[1759159899140,1.28915214,113920.0,113910.0,0.47721626]
[1759159899333,1.6387849,113920.0,113910.0,0.47721626]
[1759159899530,0.8204249,113920.0,113910.0,0.47721626]
[1759159899732,1.6387449,113920.0,113910.0,0.47721626]
[1759159900041,1.6387449,113920.0,113910.0,0.1275835]
[1759159900236,1.6387449,113920.0,113910.0,0.47721626]
[1759159901144,1.6387449,113920.0,113910.0,0.1275835]
[1759159901437,0.38306634,113920.0,113910.0,0.47721626]
[1759159901646,1.6381849,113920.0,113910.0,0.47721626]
[1759159902145,1.28855214,113920.0,113910.0,0.47721626]
[1759159902942,0.38306634,113920.0,113910.0,0.47721626]
[1759159903140,1.20074634,113920.0,113910.0,0.47721626]
[1759159903639,1.28847214,113920.0,113910.0,0.47721626]
[1759159904043,0.47079214,113920.0,113910.0,0.47721626]
[1759159904340,1.28823214,113920.0,113910.0,0.47721626]
[1759159904544,1.28823214,113920.0,113910.0,0.1275835]
[1759159904743,1.28823214,113920.0,113910.0,0.47721626]
[1759159906543,1.6378649,113920.0,113910.0,0.1275835]
[1759159906744,1.6378649,113920.0,113910.0,0.47721626]
[1759159907846,1.6378649,113920.0,113910.0,0.1275835]
[1759159908147,1.6378649,113920.0,113910.0,0.47721626]